Cogmind - Beta 14 @@@ ROGUE MODE // 2024.09.12 @ 14:11:13 Player: ZarZap Result: Destroyed by G-34 Mercenary with Small Laser Performance ------------- Evolutions (1) 500 Regions Visited (2) 400 Robots Destroyed (14) 70 Value Destroyed (166) 166 Prototype IDs (0) 0 Alien Tech Used (0) 0 Bonus (0) 0 TOTAL SCORE: 1136 Bonus ------- None Cogmind --------- Core Integrity 0/400 Matter 192/300 Energy 100/100 System Corruption 0% Temperature Cool (6) Movement Core (1350) Ox26 Location -9/Materials Parts ------- > --- POWER (2) -------- (None) > --- PROPULSION (2) --- (None) > --- UTILITY (3) ------ Huge Storage Unit Signal Interpreter Targeting Computer > --- WEAPON (2) ------- (None) > --- INVENTORY (25) --- Light Ion Engine Targeting Computer Light Assault Rifle Peak State ------------ > --- POWER ------------ Ion Engine Light Ion Engine > --- PROPULSION ------- Light Treads Light Treads > --- UTILITY ---------- Huge Storage Unit Signal Interpreter Targeting Computer > --- WEAPON ----------- Particle Gun Light Assault Rifle > --- INVENTORY -------- Ion Engine Ion Engine Light Ion Engine Targeting Computer Medium Laser Assault Rifle [Rating: 10] Favorites ----------- Power Ion Engine Engine Ion Engine Propulsion Light Treads Treads Light Treads Utility Targeting Computer Storage Small Storage Unit Processor Targeting Computer Weapon Light Assault Rifle Energy Gun Medium Laser Ballistic Gun Light Assault Rifle Build | -11 -10 -9 ------- Run | Yrd Mat Mat Slots Evolved 2 | . . 2 Power 1 | . . 1 Propulsion . | . . . Utility 1 | . . 1 Weapon . | . . . Parts Attached 19 | 6 1 12 Power 6 | 1 . 5 Engine 6 | 1 . 5 Core . | . . . Reactor . | . . . Propulsion 2 | 2 . . Treads 2 | 2 . . Leg . | . . . Wheel . | . . . Hover . | . . . Flight . | . . . Utility 5 | 1 1 3 Device . | . . . Storage 3 | 1 . 2 Processor 2 | . 1 1 Hackware . | . . . Protection . | . . . Artifact . | . . . Weapon 6 | 2 . 4 Energy Gun 3 | 1 . 2 Energy Cannon . | . . . Ballistic Gun 3 | 1 . 2 Ballistic Cannon . | . . . Launcher . | . . . Special Weapon . | . . . Impact Weapon . | . . . Slashing Weapon . | . . . Piercing Weapon . | . . . Special Melee Weapon . | . . . Unidentified Prototypes . | . . . Parts Lost 7 | . . 7 Power 3 | . . 3 Propulsion 2 | . . 2 Utility . | . . . Weapon 2 | . . 2 Highest Loss Streak 7 | . . 7 To Critical Strikes . | . . . Average Slot Usage (%) 91 | . 95 89 Engine 16 | . 14 18 Treads 22 | . 28 18 Storage 12 | . 14 11 Processor 16 | . 9 22 Energy Gun 10 | . 14 8 Ballistic Gun 11 | . 14 10 Peak Build Rating 10 | 6 7 10 Average Rating 7 | 5 6 8 On Entrance 4 | . 6 7 Naked Turns . | . . . Heaviest Build 92 | 13 13 92 Greatest Support 40 | 40 40 40 Greatest Overweight (x) 29 | . . 29 Average Overweight (x) . | . . 1 Largest Inventory Capacity 25 | 8 8 25 Average Capacity 12 | 7 8 17 Most Carried 7 | 2 7 6 Average Carried 4 | 1 4 4 Final Capacity 25 | 8 8 25 Final Carried 7 | 2 7 3 Class Distribution -------------------- 100% | Mutant Dominant Class ---------------- Mutant | -10/Materials Mutant | -9/Materials Resources | -11 -10 -9 ----------- Run | Yrd Mat Mat Matter Collected 313 | 264 20 29 Remotely . | . . . Salvage Created 518 | 50 225 243 Parts 36 | 1 10 25 Haulers Intercepted . | . . . Recyclers Shooed 2 | . 1 1 Parts Field Recycled . | . . . Retrieved Matter . | . . . Parts Self-Destructed . | . . . Prevented . | . . . Kills | -11 -10 -9 ------- Run | Yrd Mat Mat Combat Hostiles Destroyed 7 | . . 7 Guns 7 | . . 7 Classes Destroyed 4 | 1 1 2 Recycler 4 | 1 2 1 Watcher 3 | . 2 1 Swarmer 6 | . . 6 Grunt 1 | . . 1 Best Kill Streak 6 | 1 2 6 Combat Bots Only 4 | . . 4 Max Kills in Single Turn 2 | 1 1 2 Gunslinging 1 | . . 1 Exploded . | . . . Melee . | . . . Uniques/NPCs Destroyed . | . . . Combat | -11 -10 -9 -------- Run | Yrd Mat Mat Hostile Shots Fired 111 | . . 111 Missed 32 | . . 32 Damage Taken 1248 | . . 1248 Core 403 | . . 403 Absorbed by Shields . | . . . Core Remaining (%) 100 | 100 100 . Volleys Fired 45 | 4 12 29 Largest 2 | 2 2 2 Hottest 85 | 70 70 85 Shots Fired 82 | 8 24 50 Gun 82 | 8 24 50 Cannon . | . . . Launcher . | . . . Special . | . . . Kinetic 48 | 4 12 32 Thermal 34 | 4 12 18 Explosive . | . . . Electromagnetic . | . . . Robot Hit Streak 15 | 4 10 15 Robot Miss Streak 3 | 1 3 3 Penetration Max . | . . . Secondary Targets 5 | . . 5 Max Gunslinging Chain 1 | . . 1 Shots Hit Robots 57 | 6 15 36 Core Hits 21 | 2 6 13 Critical Kills . | . . . Critical Parts Destroyed 1 | . . 1 Critical Strikes 1 | . . 1 Destroy 1 | . . 1 Melee Attacks . | . . . Impact . | . . . Slashing . | . . . Piercing . | . . . Sneak Attacks . | . . . Combat Hostiles . | . . . Follow-up Attacks . | . . . Damage Inflicted 568 | 60 113 395 Guns 568 | 60 113 395 Cannons . | . . . Explosions . | . . . Melee . | . . . Ramming . | . . . Kinetic 303 | 23 40 240 Thermal 265 | 37 73 155 Explosive . | . . . Electromagnetic . | . . . Impact . | . . . Slashing . | . . . Piercing . | . . . Highest Corruption . | . . . Average Corruption . | . . . Corruption Purged . | . . . Corruption Blocked . | . . . Overload Shots . | . . . Overflow Damage . | . . . Projectiles . | . . . Explosions . | . . . Melee . | . . . Knockbacks . | . . . Impact . | . . . Kinetic . | . . . Secondary . | . . . Self-Inflicted Damage . | . . . Shots . | . . . Rammed . | . . . Targets Rammed . | . . . Kicked . | . . . Crushed . | . . . Highest Temperature 186 | 60 100 186 Average Temperature 49 | 30 35 60 Received Heat Transfer 150 | . . 150 Siege Activations . | . . . Robots Corrupted . | . . . Combat Hostiles . | . . . Parts Fried . | . . . Impact Corruptions . | . . . Robots Melted . | . . . Combat Hostiles . | . . . Parts Melted 2 | . . 2 Heat Transferred 740 | 111 222 407 Parts Sabotaged . | . . . Parts Stolen . | . . . Parts Stripped . | . . . Power Chain Reactions . | . . . Alert | -11 -10 -9 ------- Run | Yrd Mat Mat Peak Influence 210 | 5 56 210 Initial 23 | . 3 23 Average 65 | 2 21 121 Maximum Alert Level 1 | . . 1 Low Security (%) 97 | 100 100 95 Level 1 2 | . . 4 Level 2 . | . . . Level 3 . | . . . Level 4 . | . . . Level 5 . | . . . High Security . | . . . Max Security . | . . . Squads Dispatched 1 | . . 1 Investigation . | . . . Extermination . | . . . Reinforcement 1 | . . 1 Assault . | . . . Garrison . | . . . Intercept . | . . . Searches Triggered . | . . . Construction Impeded . | . . . Haulers Reinforced . | . . . Active Scanning Responses . | . . . Cargo Convoy Interrupts . | . . . Stealth | -11 -10 -9 --------- Run | Yrd Mat Mat Distress Signals 1 | . . 1 Communications Jammed . | . . . Distress Signals . | . . . Times Spotted 18 | . 5 13 Peak Tracking Total 8 | . 1 8 Tactical Retreats 2 | . . 2 Traps | -11 -10 -9 ------- Run | Yrd Mat Mat Traps Triggered . | . . . Indirectly . | . . . Trap Hack Attempts . | . . . Triggered . | . . . Disarmed . | . . . Reprogrammed . | . . . Reused . | . . . Traps Extracted . | . . . Installed . | . . . Triggered . | . . . Machines | -11 -10 -9 ---------- Run | Yrd Mat Mat Machines Disabled . | . . . Max in Single Turn . | . . . Machines Repaired . | . . . Machines Dismantled . | . . . Machines Sabotaged . | . . . Overloaded Fab Kills . | . . . Hacking | -11 -10 -9 --------- Run | Yrd Mat Mat Machines Accessed 1 | . 1 . Terminals 1 | . 1 . Fabricators . | . . . Repair Stations . | . . . Recycling Units . | . . . Scanalyzers . | . . . Garrison Access . | . . . Total Hacks 2 | . 2 . Successful 1 | . 1 . Failed 1 | . 1 . Catastrophic . | . . . Database Lockouts . | . . . Manual . | . . . Terminals 2 | . 2 . Fabricators . | . . . Repair Stations . | . . . Recycling Units . | . . . Scanalyzers . | . . . Garrison Access . | . . . Terminal Hacks 1 | . 1 . Zone Layout 1 | . 1 . Fabricator Hacks . | . . . Repair Station Hacks . | . . . Recycling Unit Hacks . | . . . Scanalyzer . | . . . Garrison Access Hacks . | . . . Unauthorized Hacks . | . . . Terminals . | . . . Fabricators . | . . . Repair Stations . | . . . Recycling Units . | . . . Scanalyzers . | . . . Garrison Access . | . . . Data Cores Recovered . | . . . Used . | . . . Hacking Detections 1 | . 1 . Full Trace Events . | . . . Feedback Events . | . . . Feedback Blocked . | . . . Robot Schematics Acquired . | . . . Robots Built . | . . . Authchips . | . . . Time . | . . . Total Robot Build Rating . | . . . Part Schematics Acquired . | . . . Parts Built . | . . . Authchips . | . . . Time . | . . . Total Part Build Rating . | . . . Parts Repaired . | . . . Time . | . . . Parts Recycled . | . . . Recycled Matter . | . . . Retrieved Matter . | . . . Retrieved Components . | . . . Parts Scanalyzed . | . . . Part Schematics Acquired . | . . . Parts Damaged . | . . . Bothacking | -11 -10 -9 ------------ Run | Yrd Mat Mat Used RIF Installer . | . . . Robots Hacked . | . . . Non-combat . | . . . Combat . | . . . Robot Hacks Applied . | . . . Relay Couplers Released . | . . . Fabnet Peak Effective % . | . . . Robots Rewired . | . . . Allies Hacked . | . . . Hacks Repelled . | . . . Allies | -11 -10 -9 -------- Run | Yrd Mat Mat Total Allies . | . . . Largest Group . | . . . Highest-Rated Group . | . . . Highest-Rated Ally . | . . . Total Orders . | . . . Ally Attacks . | . . . Total Damage . | . . . Kills . | . . . Allies Corrupted . | . . . Allies Melted . | . . . Intel | -11 -10 -9 ------- Run | Yrd Mat Mat Robot Analysis Total . | . . . Derelict Logs Recovered . | . . . Drone Launches . | . . . Drone Recoveries . | . . . Exploration | -11 -10 -9 ------------- Run | Yrd Mat Mat Turns Passed 513 | 81 191 241 Spaces Moved 201 | 39 95 67 Core 4 | 2 . 2 Treads 197 | 37 95 65 Legs . | . . . Wheels . | . . . Hover . | . . . Flight . | . . . Fastest Speed 50 | 50 160 160 Average Speed 183 | 154 160 232 Slowest Speed 1500 | 160 160 1500 Overloaded Moves . | . . . Propulsion Burnouts . | . . . Robots Hopped . | . . . Cave-ins Triggered . | . . . Exploration Rate (%) 12 | 4 25 9 Regions Visited 2 Branch Regions . Pre-discovered Areas . | . . . Known Exits Taken . | . . . Unknown Exits Taken 2 | 1 1 . Scrap Searched . | . . . Spaces Dug . | . . . Terrain Destroyed . | . . . Melee . | . . . Projectile . | . . . AOE . | . . . Terrain Rammed . | . . . Walls Destroyed . | . . . Machines Disabled . | . . . Actions | -11 -10 -9 --------- Run | Yrd Mat Mat Total 274 | 50 112 112 Wait . | . . . Move 199 | 38 94 67 Hop . | . . . Pick Up 8 | 2 5 1 Fast Attach 10 | 6 1 3 Attach 6 | . . 6 Detach . | . . . Swap 3 | . . 3 Drop 3 | . . 3 Fire 45 | 4 12 29 Melee . | . . . Ram . | . . . Kick . | . . . Crush . | . . . Escape Stasis . | . . . Rewire . | . . . Trap . | . . . Miscellaneous . | . . . Route ------- -11/Scrapyard -10/Materials -9/Materials History --------- Turn | Location | Event 44 | -11/Scrapyard | Discovered new exit (range 16) 82 | -11/Scrapyard | Entered Materials 257 | -10/Materials | Discovered new exit (range 10) 273 | -10/Materials | Entered another Materials area 273 | -9/Materials | Evolved 2 slots: Power x1, Utility x1 316 | -9/Materials | Build established: Mutant 490 | -9/Materials | Core integrity fell below 50% 506 | -9/Materials | Core integrity fell below 20% 514 | -9/Materials | Destroyed by G-34 Mercenary with Small Laser Last Messages --------------- 00465_ Lgt. Assault Rifle destroyed. 00466_ K-01 Serf collects debris. 00470_ Lgt. Ion Engine destroyed. 00471_ K-01 Serf cleans the Material Compactor. 00472_ Med. Laser severed. 00474_ K-01 Serf cleans the Material Compactor. 00475_ Lgt. Treads destroyed. 00477_ K-01 Serf cleans the Material Compactor. 00480_ Assault Rifle destroyed. 00484_ Lgt. Treads destroyed. 00484_ Acquired Lgt. Assault Rifle. 00486_ G-34 Mercenary destroyed. 00486_ K-01 Serf cleans the Material Compactor. 00489_ Lgt. Assault Rifle severed. 00491_ K-01 Serf collects debris. 00492_ Acquired Lgt. Assault Rifle. 00494_ K-01 Serf cleans the Material Compactor. 00498_ K-01 Serf collects debris. 00500_ Ion Engine destroyed. 00505_ Ion Engine severed. Map ----- +----------------------------------------------------+ | ????????????????????# ?????#???????????????????? | | ????????????????????# """?? #???????????????????? | | ????????????????????# """"" #???????????????????? | | ????????????????????# """"" #???????????????????? | | ????????????????##### """"" #???????????????????? | | ????????????????# # """ ###+#???????????????? | | ????????????????# # ## ???????????????? | | ????????????????# # + =#???????????????? | | ????????????????+ + ## %#???????????????? | | ????????????????# ###+####### *#???????????????? | | ????????????????# # ## ##??????????????? | | ????????????????# # ] # ! #??????????????? | | ????????????????# # +=%= #??????????????? | | ????????????????# # """ #!=[*#??????????????? | | ????????????????# # ! """ # *[ #??????#####+##? | | ????????????????# # """ ##=%####### | | ????????????????# # ## *= | | ????????????????# ########### = | | ????????????????# ## ## | | ???????????????? ?# """ ## | | ???????????????? ?#"""""!*# ? | | ???????????????? T ?#"""""[%+ * ? | | ????????????????? ? ?#"""""g*# !% ? | | ?????????????????????# """[=!# """ """ ?? | | ?????????????????????# ! *%## """"" """"" #?? | | ?????????????????????# [@l =## """"" """"?????? | | ?????????????????????# [## """"" """??????? | | ?????????????????????# [## """ ""??????? | | ?????????????????????# + ????? | | ?????????????????????########## ????? | | ??????????????????????????????# ##### ##?#?????? | | ??????????????????????????????# ?????????????????? | | ??????????????????????????????# ?????????????????? | | ??????????????????????????????# ?????????????????? | | ??????????????????????????????#+?????????????????? | | ??????????????????????????????? ?????????????????? | | ??????????????????????????????? ?????????????????? | | ?????????????????????????????????????????????????? | | ?????????????????????????????????????????????????? | | ?????????????????????????????????????????????????? | | ?????????????????????????????????????????????????? | | ?????????????????????????????????????????????????? | | ?????????????????????????????????????????????????? | | ?????????????????????????????????????????????????? | | ?????????????????????????????????????????????????? | | ?????????????????????????????????????????????????? | | ?????????????????????????????????????????????????? | | ?????????????????????????????????????????????????? | | ?????????????????????????????????????????????????? | | ?????????????????????????????????????????????????? | +----------------------------------------------------+ Best States ------------- Heat Dissipation 28 Energy Generation 15 Energy Capacity 400 Matter Stores 300 Matter Capacity 300 Sight Range 16 Terrain Scan Density 10 Evasion (%) 40 Targeting Accuracy 5 Recoil Reduction 2 Item Schematics ----------------- None Robot Schematics ------------------ None Fabricated ------------ Nothing Alien Tech Used ----------------- None Achievements -------------- None Challenges ------------ None Game ------ Seed CompositeGammaBotcube Manual? 0 Play Time 00:07:48 Cumulative 8.1 hours Start 2024.09.12 @ 14:05:58 End 2024.09.12 @ 14:11:13 Sessions 1 Manual Loads 0 Difficulty Rogue Special Mode None Game No. 39 Rogue 39 Adventurer 0 Explorer 0 Win Type - Total 0 Types 0/0/0/0/0/0/0/0/0 Lore% 5 Gallery% 15 Achievement% 12 Wizard Run 0 Options --------- Layout 2 ASCII 0 Keyboard 0 Movement Mouse Keybinds 0 Fullscreen 1 Font 16/SmallcapsGlow Map View 55x47 Zoom Use 0% Tactical HUD 1 Map Filters NONE Filters NONE Steam 1 RUN: 22a0ef75-0de8-43ab-a165-75cf342f2254